[Event "Titled Tuesday Blitz July 13 2021"]
[White "Ronka, Erik"]
[Black "Timofeev, Artyom"]
[WhiteFideId "505080"]
[BlackFideId "4140419"]
[WhiteElo "2264"]
[BlackElo "2582"]
[Result "0-1"]
[Round "04"]
[TimeControl "180+1"]
[Date "2021.07.13"]
[WhiteClock "0:00:01"]
[BlackClock "0:00:14"]

1. e4 {[%clk 0:03:00]}  e6 {[%clk 0:02:59]} 2. d4 {[%clk 0:03:00]}  d5 {[%clk 0:03:00]} 3. exd5 {[%clk 0:03:00]}  exd5 {[%clk 0:02:59]} 4. Nf3 {[%clk 0:03:00]}  Nf6 {[%clk 0:02:56]} 5. Bd3 {[%clk 0:02:59]}  Bd6 {[%clk 0:02:56]} 6. Qe2+ {[%clk 0:02:59]}  Qe7 {[%clk 0:02:55]} 7. Qxe7+ {[%clk 0:02:58]}  Bxe7 {[%clk 0:02:54]} 8. O-O {[%clk 0:02:57]}  h6 {[%clk 0:02:51]} 9. Re1 {[%clk 0:02:57]}  Be6 {[%clk 0:02:51]} 10. Nc3 {[%clk 0:02:56]}  c6 {[%clk 0:02:50]} 11. Ne2 {[%clk 0:02:56]}  Bg4 {[%clk 0:02:40]} 12. Ne5 {[%clk 0:02:53]}  Bc8 {[%clk 0:02:39]} 13. Ng3 {[%clk 0:02:42]}  Be6 {[%clk 0:02:39]} 14. Nf5 {[%clk 0:02:32]}  Bf8 {[%clk 0:02:34]} 15. Bf4 {[%clk 0:02:26]}  Nbd7 {[%clk 0:02:34]} 16. Nf3 {[%clk 0:02:18]}  O-O-O {[%clk 0:02:28]} 17. Nd6+ {[%clk 0:02:14]}  Bxd6 {[%clk 0:02:27]} 18. Bxd6 {[%clk 0:02:15]}  Rhe8 {[%clk 0:02:26]} 19. Re3 {[%clk 0:02:07]}  Nb6 {[%clk 0:02:23]} 20. Be5 {[%clk 0:02:00]}  Ng4 {[%clk 0:02:21]} 21. Re2 {[%clk 0:02:00]}  Nxe5 {[%clk 0:02:19]} 22. Nxe5 {[%clk 0:02:00]}  Kc7 {[%clk 0:02:14]} 23. Rae1 {[%clk 0:01:59]}  Kd6 {[%clk 0:02:14]} 24. f4 {[%clk 0:01:57]}  Rf8 {[%clk 0:01:51]} 25. Ng6 {[%clk 0:01:46]}  Rfe8 {[%clk 0:01:48]} 26. f5 {[%clk 0:01:43]}  Bd7 {[%clk 0:01:48]} 27. Ne5 {[%clk 0:01:41]}  Rf8 {[%clk 0:01:43]} 28. b3 {[%clk 0:01:28]}  Bc8 {[%clk 0:01:25]} 29. g4 {[%clk 0:01:12]}  Nd7 {[%clk 0:01:01]} 30. Kg2 {[%clk 0:01:12]}  Nf6 {[%clk 0:00:59]} 31. Kf3 {[%clk 0:01:09]}  Kc7 {[%clk 0:00:59]} 32. h4 {[%clk 0:01:07]}  Nd7 {[%clk 0:00:46]} 33. Kf4 {[%clk 0:01:00]}  g5+ {[%clk 0:00:35]} 34. fxg6 {[%clk 0:00:52]}  fxg6+ {[%clk 0:00:34]} 35. Kg3 {[%clk 0:00:53]}  Nxe5 {[%clk 0:00:34]} 36. Rxe5 {[%clk 0:00:51]}  Rd6 {[%clk 0:00:26]} 37. Re7+ {[%clk 0:00:47]}  Kb6 {[%clk 0:00:26]} 38. Rg7 {[%clk 0:00:36]}  Rdf6 {[%clk 0:00:25]} 39. Re3 {[%clk 0:00:36]}  h5 {[%clk 0:00:23]} 40. Rxg6 {[%clk 0:00:32]}  Bxg4 {[%clk 0:00:22]} 41. Rxf6 {[%clk 0:00:29]}  Rxf6 {[%clk 0:00:22]} 42. Re5 {[%clk 0:00:22]}  Rf3+ {[%clk 0:00:21]} 43. Kg2 {[%clk 0:00:22]}  Rf4 {[%clk 0:00:22]} 44. c3 {[%clk 0:00:17]}  Rf3 {[%clk 0:00:22]} 45. Be2 {[%clk 0:00:14]}  Rxc3 {[%clk 0:00:22]} 46. Bxg4 {[%clk 0:00:13]}  hxg4 {[%clk 0:00:22]} 47. Rg5 {[%clk 0:00:11]}  Rc2+ {[%clk 0:00:21]} 48. Kg3 {[%clk 0:00:11]}  Rxa2 {[%clk 0:00:21]} 49. Rxg4 {[%clk 0:00:11]}  Rb2 {[%clk 0:00:21]} 50. h5 {[%clk 0:00:10]}  Rxb3+ {[%clk 0:00:22]} 51. Kh4 {[%clk 0:00:10]}  Rb1 {[%clk 0:00:22]} 52. Rg3 {[%clk 0:00:09]}  Rh1+ {[%clk 0:00:20]} 53. Kg5 {[%clk 0:00:09]}  Rd1 {[%clk 0:00:18]} 54. Rg4 {[%clk 0:00:07]}  Rh1 {[%clk 0:00:15]} 55. h6 {[%clk 0:00:08]}  a5 {[%clk 0:00:14]} 56. Rh4 {[%clk 0:00:04]}  Rg1+ {[%clk 0:00:15]} 57. Kf6 {[%clk 0:00:05]}  Rg8 {[%clk 0:00:15]} 58. h7 {[%clk 0:00:02]}  Rh8 {[%clk 0:00:15]} 59. Kg7 {[%clk 0:00:02]}  Rxh7+ {[%clk 0:00:15]} 60. Kxh7 {[%clk 0:00:02]}  Kb5 {[%clk 0:00:16]} 61. Kg6 {[%clk 0:00:03]}  Kc4 {[%clk 0:00:15]} 62. Kf5 {[%clk 0:00:04]}  a4 {[%clk 0:00:15]} 63. Ke5 {[%clk 0:00:01]}  a3 {[%clk 0:00:15]} 64. Kd6 {[%clk 0:00:01]}  b5 {[%clk 0:00:14]} 0-1


[Site "https://www.chess.com"]

[Event "Titled Tuesday Blitz July 13 2021"]
[White "Rozhkov, Viacheslav"]
[Black "Sonis, Francesco"]
[WhiteFideId "4181484"]
[BlackFideId "895733"]
[WhiteElo "2324"]
[BlackElo "2373"]
[Result "1/2-1/2"]
[Round "04"]
[TimeControl "180+1"]
[Date "2021.07.13"]
[WhiteClock "0:00:07"]
[BlackClock "0:00:40"]

1. e4 {[%clk 0:03:00]}  e6 {[%clk 0:02:53]} 2. d4 {[%clk 0:03:00]}  d5 {[%clk 0:02:54]} 3. e5 {[%clk 0:03:01]}  c5 {[%clk 0:02:53]} 4. c3 {[%clk 0:03:01]}  Bd7 {[%clk 0:02:53]} 5. Nf3 {[%clk 0:03:01]}  Qb6 {[%clk 0:02:54]} 6. a3 {[%clk 0:03:02]}  c4 {[%clk 0:02:48]} 7. Nbd2 {[%clk 0:03:01]}  Ne7 {[%clk 0:02:48]} 8. Bxc4 {[%clk 0:02:53]}  dxc4 {[%clk 0:02:35]} 9. Nxc4 {[%clk 0:02:53]}  Qa6 {[%clk 0:02:35]} 10. Nd6+ {[%clk 0:02:52]}  Kd8 {[%clk 0:02:35]} 11. Nxf7+ {[%clk 0:02:53]}  Ke8 {[%clk 0:02:35]} 12. Nxh8 {[%clk 0:02:46]}  g6 {[%clk 0:02:35]} 13. Bg5 {[%clk 0:02:35]}  Nd5 {[%clk 0:02:28]} 14. h4 {[%clk 0:02:30]}  Bg7 {[%clk 0:02:12]} 15. h5 {[%clk 0:02:28]}  gxh5 {[%clk 0:02:07]} 16. Rxh5 {[%clk 0:02:26]}  h6 {[%clk 0:02:02]} 17. Bd2 {[%clk 0:01:46]}  Bxh8 {[%clk 0:02:00]} 18. Rxh6 {[%clk 0:01:46]}  Bg7 {[%clk 0:01:47]} 19. Rh7 {[%clk 0:01:45]}  Bf8 {[%clk 0:01:38]} 20. Ng5 {[%clk 0:01:40]}  Nc6 {[%clk 0:01:38]} 21. Qh5+ {[%clk 0:01:28]}  Kd8 {[%clk 0:01:35]} 22. Qf7 {[%clk 0:01:06]}  Be7 {[%clk 0:01:30]} 23. Rh8+ {[%clk 0:00:58]}  Kc7 {[%clk 0:01:23]} 24. Rxa8 {[%clk 0:00:57]}  Bxg5 {[%clk 0:01:23]} 25. Bxg5 {[%clk 0:00:49]}  Qb5 {[%clk 0:01:20]} 26. Qf8 {[%clk 0:00:17]}  Qxb2 {[%clk 0:01:18]} 27. Qd6+ {[%clk 0:00:15]}  Kb6 {[%clk 0:01:18]} 28. Qc5+ {[%clk 0:00:15]}  Ka6 {[%clk 0:01:17]} 29. Rc1 {[%clk 0:00:12]}  b6 {[%clk 0:01:12]} 30. Qc4+ {[%clk 0:00:11]}  Kb7 {[%clk 0:01:09]} 31. Rf8 {[%clk 0:00:11]}  Na5 {[%clk 0:01:03]} 32. Qe2 {[%clk 0:00:11]}  Qxa3 {[%clk 0:01:03]} 33. Rf7 {[%clk 0:00:10]}  Kc7 {[%clk 0:01:02]} 34. Bd2 {[%clk 0:00:08]}  Qb3 {[%clk 0:01:00]} 35. g4 {[%clk 0:00:09]}  Nc4 {[%clk 0:00:59]} 36. g5 {[%clk 0:00:09]}  Kc6 {[%clk 0:00:55]} 37. g6 {[%clk 0:00:09]}  Be8 {[%clk 0:00:55]} 38. Qf3 {[%clk 0:00:07]}  Qb2 {[%clk 0:00:53]} 39. Rd1 {[%clk 0:00:07]}  Qc2 {[%clk 0:00:49]} 40. g7 {[%clk 0:00:07]}  Bxf7 {[%clk 0:00:48]} 41. Qxf7 {[%clk 0:00:06]}  Qe4+ {[%clk 0:00:48]} 42. Kf1 {[%clk 0:00:06]}  Qh1+ {[%clk 0:00:47]} 43. Ke2 {[%clk 0:00:06]}  Qe4+ {[%clk 0:00:47]} 44. Kf1 {[%clk 0:00:07]}  Qh1+ {[%clk 0:00:43]} 45. Ke2 {[%clk 0:00:07]}  Qe4+ {[%clk 0:00:40]} 46. Kf1 {[%clk 0:00:07]} 1/2-1/2


[Site "https://www.chess.com"]

[Event "Titled Tuesday Blitz July 13 2021"]
[White "Starozhilov, Leonid"]
[Black "Pan, Kevin"]
[WhiteFideId "14106752"]
[BlackFideId "30915708"]
[WhiteElo "2414"]
[BlackElo "2140"]
[Result "1/2-1/2"]
[Round "04"]
[TimeControl "180+1"]
[Date "2021.07.13"]
[WhiteClock "0:00:49"]
[BlackClock "0:00:12"]

1. e4 {[%clk 0:03:00]}  e5 {[%clk 0:02:59]} 2. Nf3 {[%clk 0:03:01]}  Nc6 {[%clk 0:03:00]} 3. Bb5 {[%clk 0:03:01]}  a6 {[%clk 0:03:00]} 4. Ba4 {[%clk 0:03:01]}  Nf6 {[%clk 0:03:01]} 5. d3 {[%clk 0:03:02]}  b5 {[%clk 0:03:00]} 6. Bb3 {[%clk 0:03:02]}  Bc5 {[%clk 0:03:01]} 7. O-O {[%clk 0:03:01]}  d6 {[%clk 0:03:01]} 8. h3 {[%clk 0:03:00]}  h6 {[%clk 0:03:01]} 9. Nc3 {[%clk 0:03:00]}  O-O {[%clk 0:03:01]} 10. a4 {[%clk 0:03:00]}  b4 {[%clk 0:02:57]} 11. Nd5 {[%clk 0:03:00]}  Bb7 {[%clk 0:02:57]} 12. Nxf6+ {[%clk 0:02:57]}  Qxf6 {[%clk 0:02:57]} 13. Bd5 {[%clk 0:02:58]}  Rab8 {[%clk 0:02:54]} 14. Be3 {[%clk 0:02:55]}  Ne7 {[%clk 0:02:49]} 15. Bxb7 {[%clk 0:02:52]}  Rxb7 {[%clk 0:02:44]} 16. d4 {[%clk 0:02:51]}  exd4 {[%clk 0:02:27]} 17. Bxd4 {[%clk 0:02:46]}  Qe6 {[%clk 0:01:45]} 18. Bxc5 {[%clk 0:02:39]}  dxc5 {[%clk 0:01:46]} 19. Re1 {[%clk 0:02:36]}  Ng6 {[%clk 0:01:37]} 20. Qd2 {[%clk 0:02:30]}  Rb6 {[%clk 0:01:24]} 21. Qe3 {[%clk 0:02:21]}  c4 {[%clk 0:01:19]} 22. Rad1 {[%clk 0:02:11]}  Rd6 {[%clk 0:01:18]} 23. Rxd6 {[%clk 0:02:04]}  Qxd6 {[%clk 0:01:16]} 24. e5 {[%clk 0:01:59]}  Qc6 {[%clk 0:01:16]} 25. e6 {[%clk 0:01:58]}  Qxa4 {[%clk 0:01:01]} 26. exf7+ {[%clk 0:01:55]}  Rxf7 {[%clk 0:01:01]} 27. Qe4 {[%clk 0:01:56]}  Nf4 {[%clk 0:00:46]} 28. Qxc4 {[%clk 0:01:56]}  Qb5 {[%clk 0:00:30]} 29. Qe4 {[%clk 0:01:34]}  Qf5 {[%clk 0:00:15]} 30. Qxf5 {[%clk 0:01:20]}  Rxf5 {[%clk 0:00:16]} 31. Re4 {[%clk 0:01:20]}  Nxh3+ {[%clk 0:00:16]} 32. Kf1 {[%clk 0:01:20]}  Ng5 {[%clk 0:00:16]} 33. Nxg5 {[%clk 0:01:18]}  Rxg5 {[%clk 0:00:17]} 34. Rxb4 {[%clk 0:01:18]}  Rb5 {[%clk 0:00:18]} 35. Rc4 {[%clk 0:01:03]}  Rxb2 {[%clk 0:00:18]} 36. Rxc7 {[%clk 0:01:03]}  a5 {[%clk 0:00:18]} 37. Ke2 {[%clk 0:01:04]}  a4 {[%clk 0:00:19]} 38. Kd2 {[%clk 0:01:04]}  a3 {[%clk 0:00:19]} 39. Ra7 {[%clk 0:01:03]}  Ra2 {[%clk 0:00:17]} 40. g4 {[%clk 0:00:53]}  Kh7 {[%clk 0:00:17]} 41. f4 {[%clk 0:00:50]}  Kg6 {[%clk 0:00:16]} 42. Ra6+ {[%clk 0:00:50]}  Kf7 {[%clk 0:00:16]} 43. f5 {[%clk 0:00:50]}  Ra1 {[%clk 0:00:15]} 44. Kc3 {[%clk 0:00:49]}  Rg1 {[%clk 0:00:12]} 1/2-1/2


[Site "https://www.chess.com"]

[Event "Titled Tuesday Blitz July 13 2021"]
[White "Storme, Isak"]
[Black "Tsvetkov, Andrey"]
[WhiteFideId "1728113"]
[BlackFideId "34139360"]
[WhiteElo "2037"]
[BlackElo "2246"]
[Result "1-0"]
[Round "04"]
[TimeControl "180+1"]
[Date "2021.07.13"]
[WhiteClock "0:00:09"]
[BlackClock "0:00:09"]

1. c4 {[%clk 0:03:00]}  e6 {[%clk 0:03:00]} 2. d4 {[%clk 0:02:59]}  d5 {[%clk 0:03:01]} 3. Nf3 {[%clk 0:02:59]}  Nf6 {[%clk 0:03:01]} 4. g3 {[%clk 0:02:59]}  dxc4 {[%clk 0:03:01]} 5. Bg2 {[%clk 0:02:59]}  Nc6 {[%clk 0:02:59]} 6. O-O {[%clk 0:02:53]}  Rb8 {[%clk 0:02:57]} 7. e3 {[%clk 0:02:35]}  b5 {[%clk 0:02:56]} 8. b3 {[%clk 0:02:32]}  cxb3 {[%clk 0:02:54]} 9. axb3 {[%clk 0:02:32]}  Be7 {[%clk 0:02:53]} 10. Ne5 {[%clk 0:02:22]}  Nxe5 {[%clk 0:02:46]} 11. dxe5 {[%clk 0:02:22]}  Nd7 {[%clk 0:02:46]} 12. Bb2 {[%clk 0:02:18]}  a6 {[%clk 0:02:40]} 13. Nd2 {[%clk 0:02:08]}  O-O {[%clk 0:02:38]} 14. Qg4 {[%clk 0:02:07]}  Bb7 {[%clk 0:02:29]} 15. Ne4 {[%clk 0:02:06]}  Bxe4 {[%clk 0:02:21]} 16. Bxe4 {[%clk 0:02:05]}  Nc5 {[%clk 0:02:22]} 17. Rad1 {[%clk 0:02:02]}  Qe8 {[%clk 0:02:13]} 18. Bc2 {[%clk 0:02:02]}  f5 {[%clk 0:02:09]} 19. exf6 {[%clk 0:01:58]}  Bxf6 {[%clk 0:02:09]} 20. Bxf6 {[%clk 0:01:42]}  Rxf6 {[%clk 0:02:10]} 21. Rd2 {[%clk 0:01:43]}  Rd8 {[%clk 0:01:58]} 22. Rfd1 {[%clk 0:01:42]}  Rxd2 {[%clk 0:01:57]} 23. Rxd2 {[%clk 0:01:43]}  e5 {[%clk 0:01:58]} 24. Rd5 {[%clk 0:01:24]}  Qf8 {[%clk 0:01:18]} 25. Rxe5 {[%clk 0:01:23]}  Rxf2 {[%clk 0:01:15]} 26. Bxh7+ {[%clk 0:01:22]}  Kh8 {[%clk 0:00:42]} 27. Qh5 {[%clk 0:00:49]}  Rf1+ {[%clk 0:00:35]} 28. Kg2 {[%clk 0:00:49]}  Rf2+ {[%clk 0:00:36]} 29. Kh3 {[%clk 0:00:45]}  Rxh2+ {[%clk 0:00:33]} 30. Kxh2 {[%clk 0:00:46]}  Qf2+ {[%clk 0:00:34]} 31. Kh3 {[%clk 0:00:43]}  Qf1+ {[%clk 0:00:35]} 32. Kh4 {[%clk 0:00:32]}  Qh1+ {[%clk 0:00:21]} 33. Kg5 {[%clk 0:00:18]}  Ne6+ {[%clk 0:00:10]} 34. Rxe6 {[%clk 0:00:15]}  Qd5+ {[%clk 0:00:10]} 35. Kg4 {[%clk 0:00:13]}  Qd1+ {[%clk 0:00:09]} 36. Kh4 {[%clk 0:00:09]}  Qh1+ {[%clk 0:00:09]} 37. Kg5 {[%clk 0:00:09]}  Qd5+ {[%clk 0:00:09]} 38. Bf5+ {[%clk 0:00:09]} 1-0


[Site "https://www.chess.com"]

[Event "Titled Tuesday Blitz July 13 2021"]
[White "Tsaruk, Maksim"]
[Black "Aldokhin, Ivan"]
[WhiteFideId "13511173"]
[BlackFideId "24115720"]
[WhiteElo "2184"]
[BlackElo "2306"]
[Result "1-0"]
[Round "04"]
[TimeControl "180+1"]
[Date "2021.07.13"]
[WhiteClock "0:00:07"]
[BlackClock "0:00:02"]

1. e4 {[%clk 0:02:55]}  c5 {[%clk 0:03:00]} 2. Nf3 {[%clk 0:02:53]}  e6 {[%clk 0:03:00]} 3. d4 {[%clk 0:02:54]}  cxd4 {[%clk 0:03:00]} 4. Nxd4 {[%clk 0:02:54]}  a6 {[%clk 0:03:01]} 5. c4 {[%clk 0:02:54]}  Qc7 {[%clk 0:03:01]} 6. Nc3 {[%clk 0:02:55]}  Nf6 {[%clk 0:03:02]} 7. a3 {[%clk 0:02:55]}  d6 {[%clk 0:03:01]} 8. Be3 {[%clk 0:02:54]}  Be7 {[%clk 0:03:00]} 9. Be2 {[%clk 0:02:55]}  O-O {[%clk 0:03:00]} 10. O-O {[%clk 0:02:55]}  b6 {[%clk 0:03:01]} 11. Rc1 {[%clk 0:02:54]}  Bb7 {[%clk 0:03:01]} 12. f3 {[%clk 0:02:54]}  Nbd7 {[%clk 0:03:01]} 13. b4 {[%clk 0:02:55]}  Rac8 {[%clk 0:03:01]} 14. Qd2 {[%clk 0:02:53]}  Qb8 {[%clk 0:03:01]} 15. Rfd1 {[%clk 0:02:52]}  Bd8 {[%clk 0:02:59]} 16. Nb3 {[%clk 0:02:52]}  Bc7 {[%clk 0:02:59]} 17. Bf4 {[%clk 0:02:53]}  Ne8 {[%clk 0:02:37]} 18. a4 {[%clk 0:02:40]}  f5 {[%clk 0:02:29]} 19. exf5 {[%clk 0:02:21]}  Rxf5 {[%clk 0:02:28]} 20. Nd4 {[%clk 0:02:19]}  Rxf4 {[%clk 0:01:58]} 21. Qxf4 {[%clk 0:02:17]}  e5 {[%clk 0:01:58]} 22. Qf5 {[%clk 0:02:06]}  exd4 {[%clk 0:01:58]} 23. Nd5 {[%clk 0:01:37]}  Bxd5 {[%clk 0:01:16]} 24. cxd5 {[%clk 0:01:38]}  Nef6 {[%clk 0:01:05]} 25. Bxa6 {[%clk 0:01:38]}  Re8 {[%clk 0:00:58]} 26. Bb5 {[%clk 0:01:27]}  Re5 {[%clk 0:00:54]} 27. Qc2 {[%clk 0:01:27]}  Nc5 {[%clk 0:00:35]} 28. bxc5 {[%clk 0:01:25]}  dxc5 {[%clk 0:00:32]} 29. Rxd4 {[%clk 0:01:14]}  Rh5 {[%clk 0:00:17]} 30. d6 {[%clk 0:00:09]}  Bxd6 {[%clk 0:00:16]} 31. Rxd6 {[%clk 0:00:10]}  Qxd6 {[%clk 0:00:16]} 32. g3 {[%clk 0:00:10]}  Kf8 {[%clk 0:00:13]} 33. Bc4 {[%clk 0:00:11]}  Re5 {[%clk 0:00:10]} 34. Rd1 {[%clk 0:00:11]}  Qe7 {[%clk 0:00:10]} 35. Qd2 {[%clk 0:00:08]}  h5 {[%clk 0:00:07]} 36. Kf2 {[%clk 0:00:06]}  h4 {[%clk 0:00:06]} 37. Qd6 {[%clk 0:00:06]}  hxg3+ {[%clk 0:00:02]} 38. hxg3 {[%clk 0:00:06]}  Nd7 {[%clk 0:00:02]} 39. Qxd7 {[%clk 0:00:05]}  Qxd7 {[%clk 0:00:03]} 40. Rxd7 {[%clk 0:00:06]}  g5 {[%clk 0:00:03]} 41. Rf7+ {[%clk 0:00:06]}  Ke8 {[%clk 0:00:03]} 42. Rf6 {[%clk 0:00:07]}  Re7 {[%clk 0:00:02]} 43. Rxb6 {[%clk 0:00:06]}  Kd8 {[%clk 0:00:03]} 44. Re6 {[%clk 0:00:07]}  Rd7 {[%clk 0:00:02]} 45. Re5 {[%clk 0:00:08]}  Rd4 {[%clk 0:00:03]} 46. Rxc5 {[%clk 0:00:07]}  Ke7 {[%clk 0:00:02]} 47. a5 {[%clk 0:00:06]}  Rd2+ {[%clk 0:00:02]} 48. Ke3 {[%clk 0:00:06]}  Rc2 {[%clk 0:00:03]} 49. a6 {[%clk 0:00:06]}  Kd6 {[%clk 0:00:04]} 50. Rd5+ {[%clk 0:00:05]}  Kc6 {[%clk 0:00:03]} 51. Kd3 {[%clk 0:00:06]}  Rc1 {[%clk 0:00:02]} 52. a7 {[%clk 0:00:06]}  Kb7 {[%clk 0:00:02]} 53. Ra5 {[%clk 0:00:07]}  Rd1+ {[%clk 0:00:02]} 54. Kc2 {[%clk 0:00:07]}  Ka8 {[%clk 0:00:02]} 55. Kxd1 {[%clk 0:00:06]}  g4 {[%clk 0:00:02]} 56. Bd5# {[%clk 0:00:07]} 1-0


[Site "https://www.chess.com"]

[Event "Titled Tuesday Blitz July 13 2021"]
[White "Vovk, Orest"]
[Black "Jarovinsky, Alexey"]
[WhiteFideId "14113490"]
[BlackFideId "14115131"]
[WhiteElo "2203"]
[BlackElo "2446"]
[Result "1-0"]
[Round "04"]
[TimeControl "180+1"]
[Date "2021.07.13"]
[WhiteClock "0:00:04"]
[BlackClock "0:00:01"]

1. g4 {[%clk 0:03:00]}  Nc6 {[%clk 0:02:59]} 2. Bg2 {[%clk 0:02:59]}  d5 {[%clk 0:02:55]} 3. h3 {[%clk 0:02:43]}  e5 {[%clk 0:02:52]} 4. c4 {[%clk 0:02:39]}  d4 {[%clk 0:02:51]} 5. Bxc6+ {[%clk 0:02:35]}  bxc6 {[%clk 0:02:52]} 6. Qa4 {[%clk 0:02:31]}  Bd7 {[%clk 0:02:48]} 7. d3 {[%clk 0:02:22]}  c5 {[%clk 0:02:46]} 8. Qa6 {[%clk 0:02:22]}  Bd6 {[%clk 0:02:44]} 9. Nd2 {[%clk 0:02:20]}  Ne7 {[%clk 0:02:42]} 10. Ne4 {[%clk 0:02:18]}  Bc6 {[%clk 0:02:38]} 11. Nf3 {[%clk 0:02:17]}  O-O {[%clk 0:02:36]} 12. Qa5 {[%clk 0:01:59]}  f5 {[%clk 0:01:55]} 13. gxf5 {[%clk 0:01:47]}  Rxf5 {[%clk 0:01:47]} 14. Nfd2 {[%clk 0:01:42]}  Ng6 {[%clk 0:01:42]} 15. f3 {[%clk 0:01:39]}  Nf4 {[%clk 0:01:30]} 16. Nb3 {[%clk 0:01:18]}  Qh4+ {[%clk 0:01:10]} 17. Kd1 {[%clk 0:01:15]}  Ne6 {[%clk 0:00:51]} 18. Qe1 {[%clk 0:01:03]}  Qe7 {[%clk 0:00:44]} 19. Bd2 {[%clk 0:01:00]}  Ba4 {[%clk 0:00:39]} 20. Kc1 {[%clk 0:00:57]}  Rb8 {[%clk 0:00:35]} 21. Na5 {[%clk 0:00:55]}  Rb6 {[%clk 0:00:32]} 22. b3 {[%clk 0:00:52]}  Be8 {[%clk 0:00:30]} 23. Rg1 {[%clk 0:00:51]}  Kh8 {[%clk 0:00:28]} 24. Qg3 {[%clk 0:00:48]}  Rh5 {[%clk 0:00:18]} 25. Kc2 {[%clk 0:00:40]}  Bg6 {[%clk 0:00:17]} 26. Rg2 {[%clk 0:00:33]}  Ra6 {[%clk 0:00:16]} 27. Rag1 {[%clk 0:00:28]}  Qd8 {[%clk 0:00:16]} 28. a4 {[%clk 0:00:24]}  c6 {[%clk 0:00:13]} 29. Qg4 {[%clk 0:00:19]}  Nf8 {[%clk 0:00:11]} 30. Nxd6 {[%clk 0:00:17]}  Qxd6 {[%clk 0:00:10]} 31. Qc8 {[%clk 0:00:17]}  Rb6 {[%clk 0:00:09]} 32. Nb7 {[%clk 0:00:17]}  Qe7 {[%clk 0:00:08]} 33. Bg5 {[%clk 0:00:13]}  Qf7 {[%clk 0:00:05]} 34. Nd6 {[%clk 0:00:11]}  Qg8 {[%clk 0:00:05]} 35. Be7 {[%clk 0:00:10]}  Ne6 {[%clk 0:00:04]} 36. Qd7 {[%clk 0:00:09]}  Bf5 {[%clk 0:00:02]} 37. Nxf5 {[%clk 0:00:09]}  Rxf5 {[%clk 0:00:02]} 38. Bd6 {[%clk 0:00:06]}  Rh5 {[%clk 0:00:02]} 39. h4 {[%clk 0:00:05]}  Rh6 {[%clk 0:00:02]} 40. Rg4 {[%clk 0:00:03]}  Rh5 {[%clk 0:00:02]} 41. Be7 {[%clk 0:00:03]}  Rb8 {[%clk 0:00:02]} 42. Bd6 {[%clk 0:00:03]}  Re8 {[%clk 0:00:02]} 43. Bc7 {[%clk 0:00:02]}  Nf8 {[%clk 0:00:01]} 44. Qxc6 {[%clk 0:00:02]}  Ng6 {[%clk 0:00:02]} 45. Bd6 {[%clk 0:00:02]}  Rc8 {[%clk 0:00:02]} 46. Qd5 {[%clk 0:00:02]}  Nf4 {[%clk 0:00:02]} 47. Qxc5 {[%clk 0:00:03]}  Ne6 {[%clk 0:00:01]} 48. Rxg7 {[%clk 0:00:03]}  Nxc5 {[%clk 0:00:01]} 49. Rxg8+ {[%clk 0:00:03]}  Rxg8 {[%clk 0:00:02]} 50. Bxc5 {[%clk 0:00:04]}  Rxg1 {[%clk 0:00:01]} 51. Bd6 {[%clk 0:00:05]}  Rg2 {[%clk 0:00:02]} 52. Kd2 {[%clk 0:00:04]}  Rf2 {[%clk 0:00:02]} 53. c5 {[%clk 0:00:05]}  Rg2 {[%clk 0:00:03]} 54. b4 {[%clk 0:00:05]}  Rg8 {[%clk 0:00:04]} 55. b5 {[%clk 0:00:06]}  Rc8 {[%clk 0:00:04]} 56. a5 {[%clk 0:00:06]}  Kg8 {[%clk 0:00:05]} 57. b6 {[%clk 0:00:06]}  axb6 {[%clk 0:00:05]} 58. cxb6 {[%clk 0:00:06]}  Rh6 {[%clk 0:00:04]} 59. b7 {[%clk 0:00:05]}  Rd8 {[%clk 0:00:05]} 60. b8=Q {[%clk 0:00:06]}  Rxb8 {[%clk 0:00:05]} 61. Bxb8 {[%clk 0:00:06]}  Ra6 {[%clk 0:00:04]} 62. Bxe5 {[%clk 0:00:06]}  Rxa5 {[%clk 0:00:04]} 63. Bxd4 {[%clk 0:00:06]}  Ra2+ {[%clk 0:00:05]} 64. Ke3 {[%clk 0:00:05]}  Kf7 {[%clk 0:00:06]} 65. f4 {[%clk 0:00:06]}  Ra4 {[%clk 0:00:06]} 66. Be5 {[%clk 0:00:05]}  Kg6 {[%clk 0:00:07]} 67. Kf3 {[%clk 0:00:05]}  Kh5 {[%clk 0:00:06]} 68. Kg3 {[%clk 0:00:04]}  Ra3 {[%clk 0:00:07]} 69. Kf3 {[%clk 0:00:04]}  Rb3 {[%clk 0:00:07]} 70. Ke4 {[%clk 0:00:03]}  Kxh4 {[%clk 0:00:06]} 71. f5 {[%clk 0:00:04]}  Kg5 {[%clk 0:00:06]} 72. Bf4+ {[%clk 0:00:03]}  Kf6 {[%clk 0:00:06]} 73. Be5+ {[%clk 0:00:03]}  Kf7 {[%clk 0:00:06]} 74. d4 {[%clk 0:00:03]}  Rb4 {[%clk 0:00:06]} 75. Kf4 {[%clk 0:00:03]}  Ra4 {[%clk 0:00:05]} 76. e4 {[%clk 0:00:04]}  Ra1 {[%clk 0:00:05]} 77. Bc7 {[%clk 0:00:03]}  Rd1 {[%clk 0:00:05]} 78. d5 {[%clk 0:00:03]}  Rf1+ {[%clk 0:00:05]} 79. Ke5 {[%clk 0:00:03]}  h5 {[%clk 0:00:05]} 80. Bd8 {[%clk 0:00:03]}  Rh1 {[%clk 0:00:04]} 81. d6 {[%clk 0:00:04]}  h4 {[%clk 0:00:04]} 82. Kf4 {[%clk 0:00:04]}  h3 {[%clk 0:00:03]} 83. Kg3 {[%clk 0:00:04]}  Re1 {[%clk 0:00:03]} 84. d7 {[%clk 0:00:03]}  Rd1 {[%clk 0:00:03]} 85. Kxh3 {[%clk 0:00:03]}  Rxd7 {[%clk 0:00:02]} 86. Bg5 {[%clk 0:00:03]}  Rd4 {[%clk 0:00:02]} 87. e5 {[%clk 0:00:03]}  Rd5 {[%clk 0:00:02]} 88. e6+ {[%clk 0:00:03]}  Ke8 {[%clk 0:00:01]} 89. Kg4 {[%clk 0:00:04]} 1-0


[Site "https://www.chess.com"]